bitfinex/quotes_ETHUSD_20260213
["timestamp","ask_amount","ask_price","bid_price","bid_amount"]
[1770949215441,3.89851331,1948.6,1948.1,0.001]
[1770949215675,1.10482736,1948.5,1948.1,0.001]
[1770949215846,3.89851331,1948.6,1948.1,0.001]
[1770949216047,3.34538781,1948.5,1948.1,0.001]
[1770949216259,2.24056065,1948.5,1948.1,0.001]
[1770949217271,1.10516324,1948.4,1948.1,0.001]
[1770949217577,1.28307413,1948.5,1948.1,0.001]
[1770949217773,1.10544776,1948.4,1948.1,0.001]
[1770949217979,1.28307413,1948.5,1948.1,0.001]
[1770949218184,1.10545294,1948.4,1948.1,0.001]
[1770949218480,0.95748652,1948.4,1948.1,0.001]
[1770949218773,1.10586714,1948.3,1948.1,0.001]
[1770949219078,0.95748652,1948.4,1948.1,0.001]
[1770949219277,1.10590085,1948.3,1948.1,0.001]
[1770949219450,0.95748652,1948.3,1948.1,0.001]
[1770949220450,2.24067311,1948.3,1948.1,0.001]
[1770949221394,2.06455493,1948.2,1948.0,0.001]
[1770949221708,1.10706841,1948.1,1947.5,2.19369128]
[1770949221882,1.10706841,1948.0,1947.5,2.19369128]
[1770949222186,2.62048652,1948.2,1947.5,2.19369128]
[1770949222354,1.10729336,1948.1,1947.5,2.19369128]
[1770949222550,3.34814743,1948.0,1947.5,0.001]
[1770949222770,1.10729336,1947.9,1947.5,0.001]
[1770949224279,1.10729336,1947.9,1947.6,0.90902759]
[1770949224483,4.7891123,1948.2,1947.6,2.19264131]
[1770949224678,4.7891123,1948.2,1948.1,0.001]
[1770949224992,5.89805953,1948.2,1947.6,0.90902759]
[1770949225152,5.89805953,1948.2,1948.0,0.001]
[1770949225153,1.10694723,1948.1,1948.0,0.001]
[1770949226659,1.10694723,1948.1,1947.7,1.28350447]
[1770949226860,1.10694723,1948.1,1947.7,0.90902759]
[1770949230391,1.10694723,1948.1,1947.6,1.28358661]
[1770949230694,3.31940351,1948.1,1947.5,2.19369174]
[1770949230902,1.10694723,1948.0,1947.5,1.28466415]
[1770949231096,1.10694723,1947.9,1947.5,0.001]
[1770949231401,2.21255071,1948.0,1947.5,0.001]
[1770949231598,1.10634685,1947.9,1947.5,0.001]
[1770949231894,2.21255071,1948.0,1947.5,0.001]
[1770949232198,1.10633211,1947.9,1947.5,0.001]
[1770949232368,2.21255071,1948.0,1947.5,0.001]
[1770949232569,1.10623183,1947.9,1947.5,0.001]
[1770949232793,2.21255071,1948.0,1947.5,0.001]
[1770949232987,1.10622019,1947.9,1947.5,0.001]
[1770949233191,2.21255071,1948.0,1947.5,0.001]
[1770949233399,1.10613521,1947.9,1947.5,0.001]
[1770949233598,2.21255071,1948.0,1947.5,0.001]
[1770949233897,1.10613528,1947.9,1947.5,0.001]
[1770949234092,2.21255071,1948.0,1947.5,0.001]
[1770949234298,1.10607356,1947.9,1947.5,0.001]
[1770949234467,2.25862003,1948.0,1947.5,0.001]
[1770949234666,1.10607077,1947.9,1947.5,0.001]
[1770949234866,2.25862003,1948.0,1947.5,0.001]
[1770949235090,1.10607115,1947.9,1947.6,1.28363113]
[1770949235295,3.601,1948.1,1947.7,0.90670687]
[1770949235599,1.10606022,1948.0,1947.7,0.90670687]
[1770949235794,3.601,1948.1,1947.7,0.90670687]
[1770949236095,1.1060826,1948.0,1947.7,0.90670687]
[1770949236294,3.601,1948.1,1947.7,0.90670687]
[1770949236495,1.10625474,1948.0,1947.7,0.90670687]
[1770949236801,3.601,1948.1,1947.5,2.19135251]
[1770949236802,1.10630783,1947.9,1947.5,2.19135251]
[1770949236979,5.85953044,1948.1,1947.5,2.19135251]
[1770949237163,1.10630303,1948.0,1947.5,2.19135251]
[1770949237478,1.10630303,1948.0,1947.5,0.001]
[1770949237479,1.10630303,1947.9,1947.5,0.001]
[1770949238200,1.10630303,1947.9,1947.8,0.001]
[1770949240598,1.10630303,1947.9,1947.7,0.001]
[1770949241673,2.08152415,1947.9,1947.7,0.001]
[1770949241873,0.97522112,1947.9,1947.7,0.001]
[1770949242390,1.10777677,1947.8,1947.7,0.001]
[1770949244405,0.97522112,1947.7,1946.9,1.28406015]
[1770949244606,9.23758578,1947.8,1946.9,1.28406015]
[1770949244607,0.97522112,1947.5,1946.9,1.28406015]
[1770949244814,1.10777677,1947.4,1946.9,1.28406015]
[1770949246106,1.10777677,1947.4,1946.9,2.19076702]
[1770949246422,2.39157262,1947.4,1946.9,0.90670687]
[1770949246740,1.10777677,1947.3,1946.9,0.90670687]
[1770949247079,1.28378054,1947.4,1946.9,0.90670687]
[1770949247277,1.10796278,1947.3,1946.9,0.90670687]
[1770949247506,1.28378054,1947.4,1946.9,0.90670687]
[1770949247811,1.10797464,1947.3,1946.9,0.90670687]
[1770949248105,1.10797464,1947.3,1946.7,6.86476729]
[1770949248106,0.97522112,1947.4,1946.7,3.91889065]
[1770949248310,1.10781843,1947.3,1946.8,0.90670687]
[1770949248605,2.25904871,1947.4,1946.8,0.90670687]
[1770949248789,1.10784451,1947.3,1946.8,2.19085873]
[1770949249108,2.25904871,1947.4,1946.8,2.19085873]
[1770949249307,1.10769358,1947.3,1946.8,2.19085873]
[1770949249512,6.8329674,1947.5,1946.8,1.28415186]
[1770949249513,1.698,1947.5,1946.8,1.28415186]
[1770949249721,2.08291484,1947.4,1946.8,1.28415186]
[1770949249937,1.10769372,1947.3,1946.9,0.90670687]
[1770949250211,4.10159059,1947.8,1947.1,0.90670687]
[1770949250411,1.10777085,1947.7,1947.1,0.90670687]
[1770949250585,1.10777085,1947.6,1947.2,0.90670687]
[1770949250780,5.80346253,1948.0,1947.2,0.90670687]
[1770949251013,1.10759698,1947.9,1947.2,0.90670687]
[1770949251211,2.98539232,1948.0,1947.2,0.90670687]
[1770949251212,1.10759698,1947.8,1947.2,0.90670687]
[1770949251414,1.10759698,1947.7,1947.2,0.90670687]
[1770949251619,0.002,1947.9,1947.2,0.90670687]
[1770949251822,1.10778941,1947.8,1947.2,0.90670687]
[1770949251983,1.10778941,1947.7,1947.2,0.90670687]
[1770949252184,0.002,1947.9,1947.2,0.90670687]
[1770949252493,1.10788388,1947.8,1947.2,0.90670687]
[1770949252809,1.10788388,1947.7,1947.2,2.19056041]
[1770949253016,2.26070221,1947.9,1947.3,0.90670687]
[1770949253185,2.07074636,1947.8,1947.2,1.28385354]
[1770949253387,1.10789944,1947.7,1947.2,2.18992253]
[1770949253624,1.10789944,1947.6,1947.2,2.18992253]
[1770949253785,0.96284692,1947.8,1947.2,2.18992253]
[1770949253986,1.10791082,1947.7,1947.2,2.18992253]
[1770949254239,1.10791082,1947.6,1947.2,2.18992253]
[1770949254526,0.96284692,1947.8,1947.2,2.1899496]
[1770949254816,1.1079199,1947.7,1947.2,2.1899496]
[1770949255027,1.1079199,1947.6,1947.2,2.1899496]
[1770949255225,2.24635472,1947.8,1947.2,2.1899496]
[1770949255397,1.10791755,1947.7,1947.2,2.1899496]
[1770949255597,1.10791755,1947.6,1947.2,2.1899496]
[1770949255803,2.24635472,1947.8,1947.2,2.1899496]
[1770949256101,1.10790556,1947.7,1947.2,2.1899496]
[1770949256301,1.10790556,1947.6,1947.2,2.1899496]
[1770949256625,2.24635472,1947.8,1947.2,2.1899496]
[1770949256785,1.10795402,1947.7,1947.2,2.1899496]
[1770949257114,1.10795402,1947.6,1947.2,0.90606899]
[1770949257278,2.24635472,1947.8,1947.1,3.01993671]
[1770949257483,1.10805964,1947.7,1947.1,3.9260057]
[1770949257722,1.10805964,1947.6,1947.1,3.9260057]
[1770949257887,2.24635472,1947.8,1947.1,3.9260057]
[1770949258099,1.10805574,1947.7,1947.1,3.9260057]
[1770949258300,1.10805574,1947.6,1947.1,3.9260057]
[1770949258497,0.96284692,1947.7,1947.1,3.01993671]
[1770949258824,1.10812163,1947.6,1947.2,0.90606899]
[1770949259124,2.24635472,1947.8,1947.2,0.90606899]
[1770949259328,1.10817025,1947.7,1947.2,0.90606899]
[1770949259499,1.10817025,1947.6,1947.2,0.90606899]
[1770949259699,0.96284692,1947.7,1947.1,2.1900057]
[1770949259925,1.10817942,1947.6,1947.1,2.1900057]
[1770949260098,1.10820581,1947.5,1947.1,2.1900057]
[1770949260295,0.96284692,1947.5,1947.0,1.749]
[1770949260526,1.10828855,1947.4,1947.0,0.001]
[1770949260704,0.96284692,1947.5,1947.0,0.001]
[1770949260901,1.10829494,1947.4,1947.0,0.92831875]
[1770949261096,0.94222155,1947.6,1947.0,0.92831875]
[1770949261302,2.05049018,1947.5,1947.0,0.001]
[1770949261628,1.10826863,1947.4,1947.0,0.001]
[1770949263358,3.33425494,1947.4,1947.0,0.001]
[1770949263636,0.94222155,1947.2,1947.0,0.001]
[1770949263800,0.94222155,1947.3,1947.0,0.001]
[1770949263996,2.05054946,1947.2,1947.0,0.001]
[1770949264201,0.94222155,1947.2,1947.0,0.001]
[1770949264504,2.05041273,1947.1,1947.0,0.001]
[1770949264728,0.94222155,1947.0,1946.4,1.749]
[1770949264931,2.39229073,1946.9,1946.4,1.749]
[1770949265137,2.2263211,1946.9,1946.3,1.85331875]
[1770949265445,0.94222155,1946.7,1946.1,1.75]
[1770949265653,0.94222155,1946.5,1945.7,2.21215356]
[1770949265813,0.94222155,1946.5,1945.6,6.06576313]
[1770949265814,0.94222155,1946.3,1945.6,2.21089821]
[1770949266155,0.94222155,1946.3,1945.5,2.21227463]
[1770949266319,2.04872738,1946.2,1945.5,2.21227463]
[1770949266513,0.94222155,1946.2,1945.5,2.21227463]
[1770949266844,1.84284909,1946.6,1945.3,1.753]
[1770949266845,1.28468653,1946.0,1945.3,3.96542253]
[1770949267046,0.94222155,1945.9,1945.1,1.28528096]
[1770949267946,2.04678115,1945.8,1945.1,1.28528096]
[1770949268122,0.94222155,1945.8,1945.1,1.28528096]
[1770949269052,1.28488461,1945.7,1945.0,2.21262106]
[1770949269251,0.94222155,1945.6,1944.8,2.21274594]
[1770949269638,0.94222155,1945.6,1944.8,0.92731875]
[1770949269951,0.94222155,1945.6,1944.6,6.90139125]
[1770949269952,0.94222155,1945.5,1944.7,1.28550463]
[1770949270160,0.94222155,1945.5,1944.6,3.04456284]
[1770949270319,0.94222155,1945.3,1944.6,3.04460172]
[1770949271018,0.94222155,1945.3,1944.6,1.759]
[1770949271214,0.94222155,1945.3,1944.6,3.04460292]
[1770949271449,2.2273896,1945.3,1944.6,3.04460292]
[1770949271629,0.94222155,1945.3,1944.6,3.04460292]
[1770949271826,0.94222155,1945.3,1944.6,1.28560292]
[1770949272151,2.22738166,1945.3,1944.6,1.28560292]
[1770949273338,2.22738166,1945.3,1944.5,5.14252093]
[1770949273743,0.94222155,1945.2,1944.5,5.14252093]
[1770949274329,0.94222155,1945.8,1944.6,0.92731875]
[1770949274529,2.76962155,1945.7,1944.6,0.92731875]
[1770949275553,0.94222155,1945.5,1944.7,2.21286407]
[1770949276563,0.94222155,1945.5,1944.7,1.28554532]
[1770949276762,0.94222155,1945.5,1944.6,5.14218131]
[1770949276763,0.94222155,1945.5,1944.6,1.28555904]
[1770949277456,0.94222155,1945.4,1944.6,2.21287779]
[1770949278330,0.94222155,1945.4,1944.7,0.001]
[1770949278842,2.22727369,1945.5,1944.7,0.92831875]
[1770949279153,0.94222155,1945.5,1944.7,0.92831875]
[1770949279453,1.28498247,1945.6,1944.8,2.21279797]
[1770949279649,2.22720402,1945.6,1944.8,2.21279797]
[1770949280022,0.94222155,1945.5,1944.8,1.28547922]
[1770949280642,0.94222155,1945.5,1944.7,1.28651864]
[1770949280842,0.94222155,1945.5,1944.7,1.28653873]
[1770949281559,2.2273043,1945.4,1944.7,1.28653873]
[1770949281759,0.94222155,1945.4,1944.7,1.28653873]
[1770949284155,2.22732238,1945.4,1944.7,1.28653873]
[1770949284361,0.94222155,1945.3,1944.7,1.28653873]
[1770949285054,0.94222155,1945.3,1944.7,0.001]
[1770949286262,2.22737453,1945.3,1944.7,0.001]
[1770949289143,0.94222155,1945.3,1944.7,0.001]
[1770949289343,2.22738839,1945.3,1944.7,0.001]
[1770949290264,0.94222155,1945.3,1944.7,0.001]
[1770949290479,0.93783571,1945.2,1944.7,0.001]
[1770949290634,0.93783571,1945.3,1944.7,0.001]
[1770949291579,0.93783571,1945.3,1944.8,0.001]
[1770949291883,3.637,1945.5,1944.8,0.9232129]
[1770949292237,4.57483571,1945.5,1944.9,1.28541313]
[1770949292674,0.93783571,1945.4,1944.8,0.001]
[1770949292835,4.92202775,1945.5,1944.8,0.001]
[1770949292836,0.93783571,1945.3,1944.8,0.001]
[1770949293037,0.93783571,1945.3,1944.7,0.001]
[1770949293242,0.93783571,1945.1,1944.6,1.28560416]
[1770949293868,0.93783571,1945.1,1944.5,1.28562549]
[1770949294462,2.22314027,1945.1,1944.5,1.28562549]
[1770949295040,2.22311936,1945.1,1944.5,1.28562549]
[1770949295243,1.10717318,1945.0,1944.5,1.28562549]
[1770949295443,1.10717318,1944.9,1944.5,1.28562549]
[1770949295651,2.22311936,1945.1,1944.5,1.28562549]
[1770949295855,1.10707118,1945.0,1944.5,1.28562549]
[1770949296052,1.10707118,1944.9,1944.5,1.28562549]
[1770949296274,1.10707118,1944.8,1944.4,3.0476898]
[1770949296437,1.10815898,1944.7,1944.4,3.0476898]
[1770949296642,2.19564662,1945.0,1944.4,3.0476898]
[1770949296958,1.10828803,1944.9,1944.4,3.0476898]
[1770949297270,1.10828803,1944.8,1944.4,3.0476898]
[1770949297470,1.10828803,1944.7,1944.4,3.0476898]
[1770949297672,2.19561342,1945.0,1944.4,3.0476898]
[1770949297844,1.10852299,1944.9,1944.4,3.0476898]
[1770949298046,1.10852299,1944.8,1944.4,3.0476898]
[1770949298246,1.10852299,1944.7,1944.4,1.2856898]
[1770949298572,0.91026569,1944.9,1944.3,5.14309876]
[1770949298766,1.10872939,1944.8,1944.3,5.14309876]
[1770949299070,1.10872939,1944.7,1944.3,5.14309876]
[1770949299286,0.91026569,1944.9,1944.3,6.11679508]
[1770949299444,1.10888697,1944.8,1944.3,6.11679508]
[1770949299638,1.10888697,1944.7,1943.7,15.43465931]
[1770949299844,0.91026569,1944.5,1943.8,1.28614054]
[1770949300051,2.01915266,1944.4,1943.8,1.28614054]
[1770949300338,2.01915266,1944.3,1943.7,1.28617991]
[1770949300542,1.10888697,1944.2,1943.6,5.14506414]
[1770949300777,0.91026569,1944.3,1943.6,5.14506414]
[1770949300975,1.10742687,1944.2,1943.6,5.14506414]
[1770949301146,0.91026569,1944.2,1943.6,5.14506414]
[1770949301357,2.29456986,1944.4,1943.7,0.97369632]
[1770949301680,1.10645222,1944.3,1943.7,0.97369632]
[1770949301841,1.38430417,1944.5,1943.7,0.97369632]
[1770949302047,1.10649244,1944.4,1943.7,0.97369632]
[1770949302350,1.10649244,1944.3,1943.7,0.97369632]
[1770949302541,3.10230417,1944.6,1943.8,1.28614054]
[1770949302741,1.10596432,1944.5,1943.9,0.97369632]
[1770949302970,1.10596432,1944.4,1943.9,0.97369632]
[1770949303199,1.38430417,1944.8,1944.0,0.97369632]
[1770949303370,2.62826569,1945.0,1944.0,0.97369632]
[1770949303564,0.91026569,1944.9,1944.0,0.97369632]
[1770949305186,0.91026569,1944.7,1944.1,1.28594208]
[1770949305383,2.76503995,1945.1,1944.2,0.97369632]
[1770949305692,6.19758979,1945.6,1944.4,0.97369632]
[1770949305693,0.002,1945.0,1944.4,0.97369632]
[1770949307281,0.002,1945.0,1944.5,2.25937387]
[1770949307587,2.76503995,1945.7,1944.6,0.97369632]
[1770949307791,3.67530564,1946.0,1944.8,0.97369632]
[1770949307991,2.76503995,1946.1,1945.0,0.97369632]
[1770949308167,1.83726569,1946.2,1945.0,0.97369632]
[1770949308368,0.927,1946.2,1945.0,0.97369632]
[1770949308602,1.83726569,1946.2,1945.0,0.97369632]
[1770949308802,0.91026569,1946.1,1945.1,1.762]
[1770949309377,0.91026569,1946.1,1945.2,1.28521488]
[1770949310486,0.91026569,1946.0,1945.2,1.28521488]
[1770949310784,2.76503995,1946.2,1945.4,0.97369632]
[1770949310971,2.19446201,1946.8,1945.6,0.97369632]
[1770949311176,2.19446201,1946.8,1945.7,2.73369632]
[1770949311392,0.91026569,1946.6,1945.8,1.28481858]
[1770949311594,0.91026569,1946.5,1945.8,1.28481858]
[1770949312972,1.718,1946.6,1945.8,2.2585149]
[1770949314327,0.91026569,1946.9,1945.9,0.97369632]
[1770949315182,1.09978242,1946.8,1945.9,0.97369632]
[1770949315406,0.91026569,1946.9,1945.9,0.97369632]
[1770949315774,0.91026569,1946.9,1946.0,1.28468653]
[1770949316010,0.91026569,1946.9,1946.0,2.25838285]
[1770949316722,1.714,1947.0,1946.1,0.97369632]
[1770949317006,2.62426569,1947.0,1946.1,0.97369632]
[1770949317194,0.91026569,1946.9,1946.0,1.28468653]
[1770949317992,0.91026569,1946.7,1946.0,1.28468653]
[1770949320322,0.91026569,1946.6,1945.8,5.13874614]
[1770949321225,0.002,1946.8,1945.9,0.93397471]
[1770949321693,0.96621444,1946.8,1945.9,0.93397471]
[1770949322082,0.96621444,1946.8,1946.0,1.28468653]
[1770949322288,2.25038281,1946.8,1946.0,1.28468653]
[1770949322508,0.96621444,1946.8,1946.0,1.28468653]
[1770949323984,0.002,1946.8,1946.1,0.93397471]
[1770949324894,0.002,1946.8,1946.3,0.93397471]
[1770949327028,0.002,1946.8,1946.4,1.28442252]
[1770949328428,0.002,1946.8,1946.4,2.21839723]
[1770949328627,0.002,1946.8,1946.4,1.28442252]
[1770949328819,0.002,1946.8,1946.5,0.93397471]
[1770949329204,0.002,1946.8,1946.6,1.28429055]
[1770949330826,0.96421444,1947.3,1946.6,1.28429055]
[1770949331333,0.96621444,1947.5,1946.6,2.21826526]
[1770949332127,0.002,1947.5,1946.7,2.68397471]
[1770949332330,0.002,1946.8,1946.7,2.68397471]
[1770949332531,0.002,1947.5,1946.7,2.68397471]
[1770949332727,0.002,1947.5,1946.8,0.93397471]
[1770949333407,0.002,1947.5,1946.9,1.28409266]
[1770949335938,0.002,1947.5,1946.9,0.93397471]
[1770949338129,0.002,1947.5,1947.0,1.2840267]
[1770949339135,0.002,1947.5,1947.0,2.21800141]
[1770949339834,0.002,1947.5,1947.1,2.68197471]
[1770949340228,0.002,1947.5,1947.2,1.28389482]
[1770949342122,0.002,1947.5,1947.1,5.13557929]
[1770949342544,0.002,1947.9,1947.2,0.93397471]
[1770949342727,0.002,1948.3,1947.2,0.93397471]
[1770949342934,0.96621444,1948.3,1947.2,0.93397471]
[1770949343351,0.002,1948.3,1947.4,0.93397471]
[1770949343522,0.002,1948.3,1947.6,0.93397471]
[1770949344150,0.002,1948.3,1947.7,1.28356523]
[1770949346349,0.96621444,1948.2,1947.2,5.13531556]
[1770949346548,0.96621444,1948.2,1947.2,6.88731556]
[1770949348559,0.96421444,1948.0,1947.2,6.88731556]
[1770949349453,0.96421444,1948.0,1947.2,1.752]
[1770949349750,0.96421444,1947.8,1947.2,3.03589482]
[1770949350956,0.97826858,1948.0,1947.2,3.03589482]
[1770949351127,1.10303484,1947.9,1947.2,3.03589482]
[1770949351326,0.97826858,1948.0,1947.2,3.03589482]
[1770949351529,2.0813856,1947.9,1947.2,3.03589482]
[1770949351748,0.97826858,1947.9,1947.2,3.03589482]
[1770949353231,2.06399899,1947.8,1947.2,3.03589482]
[1770949353562,0.95989686,1947.8,1947.2,3.03589482]
[1770949354062,0.95989686,1947.8,1947.2,1.28389482]
[1770949354362,0.95989686,1947.8,1946.5,6.09226539]
[1770949354530,1.28369704,1947.5,1946.6,3.04629055]
[1770949354730,0.95989686,1947.4,1946.6,3.04629055]
[1770949355675,1.10533698,1947.3,1946.6,1.28429055]
[1770949355857,0.95989686,1947.2,1946.6,1.28429055]
[1770949356249,0.95989686,1947.2,1946.5,3.0463133]
[1770949362670,2.24379793,1947.2,1946.5,3.0463133]
[1770949363078,0.95989686,1947.2,1946.5,3.0463133]
[1770949365978,2.24379721,1947.2,1946.5,3.0463133]
[1770949366906,0.95989686,1947.2,1946.5,3.0463133]
[1770949367485,0.95989686,1947.1,1946.5,3.0463133]
[1770949369183,0.95989686,1947.3,1946.6,0.95587658]
[1770949371378,0.95989686,1947.2,1946.6,1.28524193]
[1770949372970,0.95989686,1947.2,1946.6,0.001]
[1770949373173,0.95989686,1947.1,1946.6,0.001]
[1770949373498,0.95989686,1946.9,1946.6,0.001]
[1770949374194,1.92,1947.2,1946.6,0.001]
[1770949374598,2.87989686,1947.2,1946.6,0.001]
[1770949376283,1.1059548,1947.1,1946.6,1.28529055]
[1770949376598,2.87989686,1947.2,1946.6,1.28529055]
[1770949376796,1.10592149,1947.1,1946.6,1.28529055]
[1770949376998,2.87989686,1947.2,1946.6,1.28529055]
[1770949377197,1.10592134,1947.1,1946.6,1.28529055]
[1770949377406,2.87989686,1947.2,1946.6,1.28529055]
[1770949377606,1.1062111,1947.1,1946.6,1.28529055]
[1770949377781,0.95989686,1947.1,1946.6,1.28529055]
[1770949379695,4.16372605,1947.3,1946.6,1.28529055]
[1770949380006,2.06656493,1947.2,1946.6,1.28529055]
[1770949380211,1.10666807,1947.1,1946.6,1.28529055]
[1770949380408,2.06084549,1947.1,1946.6,0.001]
[1770949380610,0.95417742,1947.3,1946.6,0.001]
[1770949380918,1.10696665,1947.2,1946.7,0.97105431]
[1770949381215,4.15771507,1947.8,1946.7,0.97105431]
[1770949381403,1.10749631,1947.7,1946.7,0.97105431]
[1770949381602,1.10749631,1947.6,1946.7,0.97205431]
[1770949381802,1.10749631,1947.5,1946.7,0.97205431]
[1770949382004,3.91561418,1947.9,1946.7,0.97205431]
[1770949382206,1.1077242,1947.8,1946.7,0.97205431]
[1770949382386,1.1077242,1947.7,1946.7,0.97205431]
[1770949382718,1.1077242,1947.6,1946.7,0.97205431]
[1770949382884,0.002,1947.9,1946.9,0.97105431]
[1770949383205,1.1077582,1947.8,1946.9,0.97105431]
[1770949383510,0.002,1947.9,1946.9,0.97105431]
[1770949383714,1.10800617,1947.8,1946.9,0.97105431]
[1770949383910,0.002,1947.9,1946.9,0.97105431]
[1770949384117,0.002,1947.9,1947.1,0.97105431]
[1770949384286,0.002,1947.9,1947.2,2.73905431]
[1770949384489,0.002,1947.9,1947.3,0.97105431]
[1770949384910,0.002,1947.9,1947.4,1.28376296]
[1770949388391,0.002,1947.9,1947.4,2.25481727]
[1770949391999,0.002,1947.9,1947.5,0.97105431]
[1770949394026,0.002,1947.9,1947.6,1.28363113]
[1770949395327,0.002,1947.9,1947.6,4.02468544]
[1770949395519,0.002,1947.9,1947.7,0.97105431]
[1770949395825,0.002,1948.0,1947.7,0.97105431]
[1770949396127,0.002,1948.0,1947.6,3.05363113]
[1770949406809,0.002,1948.0,1947.7,0.001]
[1770949407332,0.002,1947.9,1947.7,0.001]
[1770949407833,0.00063289,1947.9,1947.7,0.001]
[1770949410134,0.002,1948.2,1947.7,0.97205431]
[1770949411435,0.91420286,1948.2,1947.7,0.001]
[1770949411610,0.91420286,1948.2,1947.8,1.783]
[1770949413139,1.10735036,1948.1,1947.8,1.783]
[1770949413446,0.002,1948.2,1947.8,1.783]
[1770949413620,1.10747698,1948.1,1947.9,1.28343344]
[1770949413824,0.002,1948.2,1947.9,1.28343344]
[1770949414147,1.10769529,1948.1,1947.9,1.28343344]
[1770949414351,0.002,1948.2,1947.9,1.28343344]
[1770949414648,1.10770116,1948.1,1947.9,1.28343344]
[1770949414833,0.92248562,1948.2,1947.9,1.28343344]
[1770949415137,1.10734856,1948.1,1947.9,1.28343344]
[1770949415309,0.92248562,1948.2,1947.9,1.28343344]
[1770949415505,1.10734392,1948.1,1947.9,1.28343344]
[1770949415710,0.92248562,1948.2,1947.9,1.28343344]
[1770949415911,1.10730374,1948.1,1947.9,1.28343344]
[1770949416142,0.92248562,1948.2,1947.9,1.28343344]
[1770949416330,1.10731805,1948.1,1947.9,1.28343344]
[1770949416532,0.92248562,1948.2,1947.9,1.28343344]
[1770949416842,1.10734753,1948.1,1947.9,1.28343344]
[1770949417022,0.92248562,1948.2,1947.9,1.28343344]
[1770949417219,1.10738455,1948.1,1947.9,1.28343344]
[1770949417424,0.92248562,1948.2,1947.9,1.28343344]
[1770949417625,1.10741877,1948.1,1947.9,1.28343344]
[1770949417826,0.92248562,1948.2,1947.9,1.28343344]
[1770949418026,1.10742111,1948.1,1947.9,1.28343344]
[1770949418226,0.92248562,1948.2,1947.9,1.28343344]
[1770949418437,1.10579017,1948.1,1947.9,1.28343344]
[1770949418638,0.92248562,1948.2,1947.9,1.28343344]
[1770949418837,1.10579041,1948.1,1947.9,1.28343344]
[1770949419048,0.92248562,1948.2,1947.9,1.28343344]
[1770949419248,1.10582246,1948.1,1947.9,1.28343344]
[1770949419456,0.92248562,1948.2,1947.9,1.28343344]
[1770949419651,1.10583972,1948.1,1948.0,0.001]
[1770949419945,1.10783972,1948.1,1948.0,0.001]
[1770949421920,0.002,1948.1,1948.0,0.001]
[1770949423657,0.92248562,1948.1,1948.0,0.001]
[1770949423950,0.92048562,1948.0,1947.7,3.06955867]
[1770949426055,0.92048562,1948.0,1947.7,1.786]
[1770949428158,0.92048562,1947.8,1947.7,0.001]
[1770949428867,0.92048562,1947.7,1947.5,0.001]
[1770949429968,0.92048562,1947.5,1946.9,1.784]
[1770949430126,0.92048562,1947.3,1946.9,1.784]
[1770949431156,0.92048562,1947.3,1946.9,1.28409019]
[1770949431737,0.92048562,1947.5,1946.9,2.25283886]
[1770949432133,0.92048562,1947.7,1946.9,2.25283886]
[1770949432330,1.1030696,1947.6,1947.1,0.96874867]
[1770949432650,0.92048562,1947.7,1947.1,0.96874867]
[1770949432850,1.10317561,1947.6,1947.1,0.96874867]
[1770949433159,0.92048562,1947.7,1947.1,0.96874867]
[1770949433362,1.10267799,1947.6,1947.1,0.96874867]
[1770949433659,0.92048562,1947.7,1947.1,0.96874867]
[1770949433861,1.10265811,1947.6,1947.1,0.96874867]
[1770949434060,0.92048562,1947.7,1947.1,0.96874867]
[1770949434263,2.55948562,1947.8,1947.2,2.25264349]
[1770949435057,1.639,1947.8,1947.2,2.25264349]
[1770949435457,0.92048562,1947.7,1947.2,1.28389482]
[1770949436059,1.639,1947.8,1947.2,2.25264349]
[1770949436356,1.639,1947.8,1947.4,1.28376296]
[1770949436859,0.92248562,1948.1,1947.4,1.28376296]
[1770949437083,0.002,1948.1,1947.5,0.96874867]
[1770949437571,0.92248562,1948.1,1947.5,0.96874867]
[1770949438560,0.92248562,1948.1,1947.6,1.28363113]
[1770949439935,0.92048562,1948.0,1947.5,1.2836529]
[1770949440448,0.002,1948.1,1947.5,2.21786774]
[1770949440650,0.91272294,1948.1,1947.5,2.21786774]
[1770949442851,0.91072294,1948.0,1947.5,1.2836529]
[1770949444154,0.91272294,1948.1,1947.5,2.21786774]
[1770949445156,0.002,1948.0,1947.5,2.21786774]
[1770949447541,0.002,1948.0,1947.6,0.93421484]
[1770949449190,0.002,1948.0,1947.7,1.28356523]
[1770949449543,0.002,1948.0,1947.7,3.09756523]
[1770949449768,0.002,1948.0,1947.7,4.03178007]
[1770949450350,0.002,1948.0,1947.7,3.09756523]
[1770949451371,0.002,1948.0,1947.7,4.03178007]
[1770949451952,0.002,1948.0,1947.8,0.93421484]
[1770949453171,0.002,1948.0,1947.7,3.09756523]
[1770949455621,0.91272294,1948.0,1947.6,1.28360541]
[1770949455899,0.91272294,1948.0,1947.7,1.824]
[1770949456867,0.002,1947.9,1947.7,1.824]
[1770949457198,0.002,1947.9,1947.6,1.28360541]
[1770949457587,0.002,1947.9,1947.7,0.93421484]
[1770949458574,0.002,1948.0,1947.8,2.76221484]
[1770949459568,0.002,1948.2,1947.9,1.28343344]
[1770949461603,0.002,1948.8,1948.1,0.93421484]
[1770949461803,0.002,1949.0,1948.1,0.93421484]
[1770949461804,0.002,1949.0,1948.6,0.93421484]
[1770949461984,0.002,1949.0,1948.7,1.833]
[1770949462473,0.002,1949.0,1948.7,2.76721484]
[1770949463807,0.002,1949.0,1948.8,1.28284072]
[1770949465503,0.002,1949.0,1948.8,2.21705556]
[1770949465801,2.56072294,1949.8,1949.1,2.21685811]
[1770949465979,2.56072294,1949.8,1949.2,1.842]
[1770949466593,0.91272294,1949.8,1949.2,1.842]
[1770949466794,0.002,1949.8,1949.4,0.93421484]
[1770949467102,0.002,1949.8,1949.5,1.843]
[1770949468117,0.002,1949.8,1949.6,1.28231432]
[1770949469177,0.91072294,1950.2,1949.6,1.28231432]
[1770949469678,0.002,1949.7,1949.6,1.28231432]
[1770949469873,0.91072294,1950.2,1949.6,1.28231432]
[1770949472106,0.98087844,1950.1,1949.6,1.28231432]
[1770949472291,0.98087844,1950.0,1949.5,1.848]
[1770949472806,0.98087844,1950.0,1949.3,1.28246819]
[1770949472996,0.98087844,1950.0,1949.5,1.849]
[1770949474113,0.98087844,1950.0,1949.4,1.847]
[1770949474603,0.98087844,1950.0,1949.4,3.12943831]
[1770949474604,1.28207603,1950.0,1949.4,3.12943831]
[1770949474902,0.91988813,1949.9,1949.4,1.847]
[1770949475103,0.91988813,1949.9,1949.3,1.846]